Cogmind - Beta 9.6 @@@ ROGUE MODE // 2020.09.02 @ 01:02:33 Player: zapruda Result: Destroyed by Y-45 Defender with Heavy Assault Rifle Performance ------------- Evolutions (1) 500 Regions Visited (4) 800 Robots Destroyed (25) 125 Value Destroyed (618) 618 Prototype IDs (2) 40 Alien Tech Used (0) 0 Bonus (0) 0 TOTAL SCORE: 2083 Bonus ------- None Cogmind --------- Core Integrity 0/400 Matter 89/300 Energy 77/250 System Corruption 0% Temperature Cool (9) Movement Treading (160) Location -9/Storage Parts ------- > --- POWER (1) -------- Ion Engine > --- PROPULSION (3) --- Light Treads > --- UTILITY (3) ------ Small Storage Unit Terrain Scanner Field Recycling Unit > --- WEAPON (2) ------- Mini Grenade Launcher Mini Grenade Launcher > --- INVENTORY (6) ---- Mini Grenade Launcher Mini Grenade Launcher Signal Generator Peak State ------------ > --- POWER ------------ Light Ion Engine > --- PROPULSION ------- Flight Unit > --- UTILITY ---------- Disposable Heat Sink Small Storage Unit Improved Power Shielding > --- WEAPON ----------- Mini Grenade Launcher Mini Grenade Launcher > --- INVENTORY -------- Terrain Scanner Mini Grenade Launcher Mini Grenade Launcher Signal Generator [Rating: 13] Favorites ----------- Power Light Ion Engine Engine Light Ion Engine Propulsion Flight Unit Treads Improved Treads Leg Aluminum Leg Flight Unit Flight Unit Utility Small Storage Unit Device Disposable Heat Sink Storage Small Storage Unit Protection Improved Power Shielding Weapon Light Assault Rifle Energy Gun Beam Rifle Energy Cannon Light EM Pulse Cannon Ballistic Gun Light Assault Rifle Launcher Mini Grenade Launcher Special Melee Weapon Improved Datajack Build | -11 -10 -10 -9 -9 ------- Run | Scr Mat Min Mat Sto Slots Evolved 2 | . . . 2 . Power . | . . . . . Propulsion 1 | . . . 1 . Utility 1 | . . . 1 . Weapon . | . . . . . Parts Attached 39 | 6 3 6 6 18 Power 7 | 1 . 2 . 4 Engine 7 | 1 . 2 . 4 Core . | . . . . . Reactor . | . . . . . Propulsion 14 | 2 2 3 2 5 Treads 5 | 1 2 . . 2 Leg 1 | 1 . . . . Wheel . | . . . . . Hover . | . . . . . Flight 8 | . . 3 2 3 Utility 7 | 1 1 1 1 3 Device 4 | . 1 . 1 2 Storage 2 | 1 . 1 . . Processor . | . . . . . Hackware . | . . . . . Protection 1 | . . . . 1 Artifact . | . . . . . Weapon 11 | 2 . . 3 6 Energy Gun 1 | . . . . 1 Energy Cannon 3 | . . . 2 1 Ballistic Gun 4 | 2 . . . 2 Ballistic Cannon . | . . . . . Launcher 2 | . . . . 2 Special Weapon . | . . . . . Impact Weapon . | . . . . . Slashing Weapon . | . . . . . Piercing Weapon . | . . . . . Special Melee Weapon 1 | . . . 1 . Unidentified Prototypes . | . . . . . Parts Lost 15 | . . . . 15 Power 1 | . . . . 1 Propulsion 7 | . . . . 7 Utility 2 | . . . . 2 Weapon 5 | . . . . 5 Highest Loss Streak 7 | . . . . 7 Average Slot Usage (%) 77 | . 89 85 76 73 Engine 11 | . 14 14 11 9 Treads 7 | . 22 12 . 4 Flight 15 | . . 15 33 14 Device 9 | . 7 6 4 12 Storage 12 | . 14 14 17 11 Protection 3 | . . . . 6 Energy Cannon 2 | . . . 6 2 Ballistic Gun 10 | . 28 20 5 3 Launcher 4 | . . . . 7 Naked Turns . | . . . . . Heaviest Build 20 | 9 10 12 13 20 Greatest Support 46 | 20 46 46 13 20 Greatest Overweight (x) 3 | . 2 2 1 3 Average Overweight (x) . | . . . . . Largest Inventory Capacity 8 | 6 6 8 8 6 Average Capacity 6 | 5 6 6 7 6 Most Carried 8 | 6 6 7 8 6 Average Carried 5 | 4 5 5 6 4 Final Capacity 8 | 6 6 8 6 6 Final Carried 7 | 6 6 7 6 3 Class Distribution -------------------- 82% | Mutant 17% | Scavenger-Mutant Dominant Class ---------------- Mutant | -10/Materials Mutant | -10/Mines Scavenger-Mutant | -9/Materials Mutant | -9/Storage Resources | -11 -10 -10 -9 -9 ----------- Run | Scr Mat Min Mat Sto Matter Collected 567 | 200 . 184 40 143 Remotely . | . . . . . Salvage Created 748 | 65 . 47 59 577 Parts 46 | 4 . 8 3 31 Haulers Intercepted 1 | . . . . 1 Recyclers Shooed . | . . . . . Parts Field Recycled . | . . . . . Retrieved Matter . | . . . . . Parts Self-Destructed . | . . . . . Prevented . | . . . . . Kills | -11 -10 -10 -9 -9 ------- Run | Scr Mat Min Mat Sto Combat Hostiles Destroyed 18 | . . 3 1 14 Guns 6 | . . 3 . 3 Cannons 6 | . . . 1 5 AOE 6 | . . . . 6 Classes Destroyed 9 | 2 . 1 1 5 Worker 1 | . . . . 1 Builder 2 | . . . . 2 Tunneler 1 | 1 . . . . Hauler 1 | . . . . 1 Recycler 2 | 1 . . . 1 Swarmer 6 | . . 3 . 3 Grunt 5 | . . . . 5 Brawler 1 | . . . . 1 Sentry 6 | . . . 1 5 Best Kill Streak 7 | 2 . 3 1 7 Combat Bots Only 5 | . . 3 1 5 Max Kills in Single Turn 2 | 1 . 1 1 2 Gunslinging . | . . . . . Exploded 2 | . . . . 2 Melee . | . . . . . Uniques/NPCs Destroyed . | . . . . . Combat | -11 -10 -10 -9 -9 -------- Run | Scr Mat Min Mat Sto Damage Taken 1859 | . . 273 126 1460 Core 451 | . . 48 43 360 Absorbed by Shields 27 | . . . . 27 Core Remaining (%) 90 | 100 . 80 . . Volleys Fired 67 | 5 . 12 5 45 Largest 2 | 2 . 2 1 2 Hottest 112 | 40 . 40 56 112 Shots Fired 104 | 10 . 24 5 65 Gun 65 | 10 . 24 . 31 Cannon 19 | . . . 5 14 Launcher 20 | . . . . 20 Special . | . . . . . Kinetic 58 | 10 . 24 . 24 Thermal 7 | . . . . 7 Explosive 20 | . . . . 20 Electromagnetic 19 | . . . 5 14 Robot Hit Streak 16 | 5 . 6 5 16 Robot Miss Streak 5 | 1 . 5 3 2 Penetration Max . | . . . . . Secondary Targets 2 | . . 1 . 1 Max Gunslinging Chain 1 | . . 1 . 1 Shots Hit Robots 71 | 8 . 12 2 49 Core Hits 42 | 5 . 6 1 30 Critical Hits . | . . . . . Critical Kills . | . . . . . Critical Parts Destroyed . | . . . . . Melee Attacks . | . . . . . Impact . | . . . . . Slashing . | . . . . . Piercing . | . . . . . Sneak Attacks . | . . . . . Combat Hostiles . | . . . . . Follow-up Attacks . | . . . . . Damage Inflicted 1661 | 69 . 83 38 1471 Guns 416 | 69 . 83 . 264 Cannons 306 | . . . 38 268 Explosions 939 | . . . . 939 Melee . | . . . . . Ramming . | . . . . . Kinetic 315 | 69 . 83 . 163 Thermal 101 | . . . . 101 Explosive 939 | . . . . 939 Electromagnetic 306 | . . . 38 268 Impact . | . . . . . Slashing . | . . . . . Piercing . | . . . . . Highest Corruption . | . . . . . Average Corruption . | . . . . . Corruption Purged . | . . . . . Overload Shots . | . . . . . Overflow Damage 15 | . . . . 15 Projectiles 5 | . . . . 5 Explosions 10 | . . . . 10 Melee . | . . . . . Knockbacks . | . . . . . Impact . | . . . . . Kinetic . | . . . . . Secondary . | . . . . . Self-Inflicted Damage 182 | . . . 87 95 Shots 5 | . . . 1 4 Rammed . | . . . . . Targets Rammed . | . . . . . Kicked . | . . . . . Crushed . | . . . . . Highest Temperature 105 | . . . 51 105 Average Temperature 28 | . . . 25 29 Received Heat Transfer 375 | . . . 18 357 Siege Activations . | . . . . . Robots Corrupted . | . . . . . Combat Hostiles . | . . . . . Parts Fried 1 | . . . . 1 Impact Corruptions . | . . . . . Robots Melted . | . . . . . Combat Hostiles . | . . . . . Parts Melted . | . . . . . Heat Transferred 259 | . . . . 259 Parts Sabotaged . | . . . . . Parts Stolen . | . . . . . Parts Stripped . | . . . . . Power Chain Reactions . | . . . . . Missiles Intercepted . | . . . . . Alert | -11 -10 -10 -9 -9 ------- Run | Scr Mat Min Mat Sto Peak Influence 285 | 10 6 141 167 285 Average Influence 121 | 3 6 54 97 203 Maximum Alert Level 1 | . . . . 1 Low Security (%) 71 | 100 100 100 100 41 Level 1 28 | . . . . 58 Level 2 . | . . . . . Level 3 . | . . . . . Level 4 . | . . . . . Level 5 . | . . . . . High Security . | . . . . . Max Security . | . . . . . Squads Dispatched 2 | . . 1 . 1 Investigation . | . . . . . Extermination . | . . . . . Reinforcement 1 | . . . . 1 Assault 1 | . . 1 . . Garrison . | . . . . . Intercept . | . . . . . Construction Impeded . | . . . . . Haulers Reinforced . | . . . . . Stealth | -11 -10 -10 -9 -9 --------- Run | Scr Mat Min Mat Sto Distress Signals 4 | . . . . 4 Communications Jammed . | . . . . . Distress Signals . | . . . . . Times Spotted 29 | . . 3 3 23 Peak Tracking Total 6 | . . 3 2 6 Tactical Retreats 1 | . . . . 1 Traps | -11 -10 -10 -9 -9 ------- Run | Scr Mat Min Mat Sto Traps Triggered 1 | . . . . 1 Indirectly . | . . . . . Trap Hack Attempts . | . . . . . Triggered . | . . . . . Disarmed . | . . . . . Reprogrammed . | . . . . . Reused . | . . . . . Traps Extracted . | . . . . . Installed . | . . . . . Triggered . | . . . . . Machines | -11 -10 -10 -9 -9 ---------- Run | Scr Mat Min Mat Sto Machines Disabled 5 | . . . 2 3 Max in Single Turn 2 | . . . 2 1 Machines Sabotaged . | . . . . . Garrisons Compromised . | . . . . . Overloaded Fab Kills . | . . . . . Fab Network Shutdowns . | . . . . . Hacking | -11 -10 -10 -9 -9 --------- Run | Scr Mat Min Mat Sto Machines Accessed 3 | . . . 2 1 Terminals 2 | . . . 2 . Fabricators . | . . . . . Repair Stations . | . . . . . Recycling Units 1 | . . . . 1 Scanalyzers . | . . . . . Garrison Access . | . . . . . Total Hacks 10 | . . . 8 2 Successful 7 | . . . 6 1 Failed 3 | . . . 2 1 Catastrophic . | . . . . . Database Lockouts . | . . . . . Manual . | . . . . . Terminals 8 | . . . 8 . Fabricators . | . . . . . Repair Stations . | . . . . . Recycling Units 2 | . . . . 2 Scanalyzers . | . . . . . Garrison Access . | . . . . . Terminal Hacks 6 | . . . 6 . Record 1 | . . . 1 . Prototype ID Bank 1 | . . . 1 . Branch Access Points 1 | . . . 1 . Emergency Access Points 1 | . . . 1 . Transport Status 1 | . . . 1 . Registered Components 1 | . . . 1 . Fabricator Hacks . | . . . . . Repair Station Hacks . | . . . . . Recycling Unit Hacks 1 | . . . . 1 Report Inventory 1 | . . . . 1 Scanalyzer . | . . . . . Garrison Access Hacks . | . . . . . Unauthorized Hacks . | . . . . . Terminals . | . . . . . Fabricators . | . . . . . Repair Stations . | . . . . . Recycling Units . | . . . . . Scanalyzers . | . . . . . Garrison Access . | . . . . . Data Cores Recovered . | . . . . . Used . | . . . . . Hacking Detections 3 | . . . 2 1 Full Trace Events . | . . . . . Feedback Events . | . . . . . Feedback Blocked . | . . . . . Robot Schematics Acquired . | . . . . . Robots Built . | . . . . . Matter . | . . . . . Time . | . . . . . Total Robot Build Rating . | . . . . . Part Schematics Acquired . | . . . . . Parts Built . | . . . . . Matter . | . . . . . Time . | . . . . . Total Part Build Rating . | . . . . . Parts Repaired . | . . . . . Time . | . . . . . Parts Recycled . | . . . . . Recycled Matter . | . . . . . Retrieved Matter . | . . . . . Retrieved Components . | . . . . . Parts Scanalyzed . | . . . . . Part Schematics Acquired . | . . . . . Parts Damaged . | . . . . . Bothacking | -11 -10 -10 -9 -9 ------------ Run | Scr Mat Min Mat Sto Used RIF Installer . | . . . . . Robots Hacked . | . . . . . Non-combat . | . . . . . Combat . | . . . . . Robot Hacks Applied . | . . . . . Relay Couplers Released . | . . . . . Robots Rewired . | . . . . . Allies Hacked . | . . . . . Hacks Repelled . | . . . . . Allies | -11 -10 -10 -9 -9 -------- Run | Scr Mat Min Mat Sto Total Allies 1 | . . 1 . . Largest Group 1 | . . 1 . . Highest-Rated Group 31 | . . 31 . . Highest-Rated Ally 31 | . . 31 . . Total Orders . | . . . . . Ally Attacks 13 | . . 13 . . Total Damage 233 | . . 233 . . Kills 3 | . . 3 . . Allies Corrupted . | . . . . . Allies Melted . | . . . . . Intel | -11 -10 -10 -9 -9 ------- Run | Scr Mat Min Mat Sto Robot Analysis Total . | . . . . . Derelict Logs Recovered 2 | . . 2 . . Drone Launches . | . . . . . Drone Recoveries . | . . . . . Exploration | -11 -10 -10 -9 -9 ------------- Run | Scr Mat Min Mat Sto Turns Passed 1019 | 122 85 209 106 497 Spaces Moved 880 | 66 46 308 159 301 Core 69 | 7 3 . . 59 Treads 207 | 48 43 32 . 84 Legs 11 | 11 . . . . Wheels . | . . . . . Hover . | . . . . . Flight 593 | . . 276 159 158 Fastest Speed 34 | 50 150 37 34 34 Average Speed 79 | 141 159 51 35 105 Slowest Speed 280 | 160 160 220 114 280 Overloaded Moves . | . . . . . Propulsion Burnouts . | . . . . . Robots Hopped 2 | . . 2 . . Cave-ins Triggered . | . . . . . Exploration Rate (%) 31 | 4 14 58 16 66 Regions Visited 4 Branch Regions 2 Pre-discovered Areas . | . . . . . Known Exits Taken 1 | . . . 1 . Unknown Exits Taken 3 | 1 1 1 . . Scrap Searched . | . . . . . Spaces Dug . | . . . . . Terrain Destroyed 140 | . . . 27 113 Melee . | . . . . . Projectile . | . . . . . AOE 140 | . . . 27 113 Actions | -11 -10 -10 -9 -9 --------- Run | Scr Mat Min Mat Sto Total 1111 | 86 61 338 206 420 Wait 47 | . . 1 19 27 Move 872 | 65 45 303 158 301 Hop 2 | . . 2 . . Pick Up 45 | 10 7 5 9 14 Fast Attach 7 | 2 . 3 2 . Attach 26 | 4 3 . 4 15 Detach . | . . . . . Swap 6 | . . 3 . 3 Drop 26 | . 6 9 9 2 Fire 67 | 5 . 12 5 45 Melee . | . . . . . Ram . | . . . . . Kick . | . . . . . Crush . | . . . . . Escape Stasis 13 | . . . . 13 Rewire . | . . . . . Trap . | . . . . . Miscellaneous . | . . . . . Route ------- -11/Scrapyard -10/Materials -10/Mines (discovered 2 exits: *Mat x2) -9/Materials (discovered 5 exits: Mat x2 / Min / *Sto x2) -9/Storage History --------- Turn | Location | Event 22 | -11/Scrapyard | Discovered new exit (range 14) 123 | -11/Scrapyard | Entered Materials 123 | -10/Materials | Discovered new exit (range 14) 208 | -10/Materials | Entered Mines 215 | -10/Mines | Assembled infested the area 248 | -10/Mines | Met a Derelict bent on vengeance 327 | -10/Mines | Build established: Mutant 328 | -10/Mines | Learned 4 Materials zone layouts 336 | -10/Mines | Discovered new exit (range 6) 354 | -10/Mines | Learned 4 Materials zone layouts 356 | -10/Mines | Met a Derelict testing a Signal Generator 369 | -10/Mines | Found Signal Generator 408 | -10/Mines | Discovered new exit (range 5) 417 | -10/Mines | Entered Materials 417 | -9/Materials | Evolved 2 slots: Propulsion x1, Utility x1 418 | -9/Materials | Identified exit to Materials 418 | -9/Materials | Identified exit to Mines 418 | -9/Materials | Identified exit to Storage 523 | -9/Materials | Entered Storage 669 | -9/Storage | Core integrity fell below 50% 724 | -9/Storage | Lost 7 parts (4n3w) 843 | -9/Storage | Core integrity fell below 20% 850 | -9/Storage | Lost 4 parts (2n2w) 1020 | -9/Storage | Destroyed by Y-45 Defender with Heavy Assault Rifle Last Messages --------------- Acquired 14 matter. The unstable cave ceiling collapses. U-05 Engineer builds a Door. K-01 Serf collects debris. K-01 Serf destroyed. R-06 Scavenger destroyed. Disposable Heat Sink destroyed. The unstable cave ceiling collapses. U-05 Engineer lays Concrete. Flight Unit destroyed. U-05 Engineer builds a Wall. A-02 Transporter destroyed. K-01 Serf destroyed. The unstable cave ceiling collapses. Terminal disabled. G-34 Mercenary destroyed. W-16 Scout sends out distress signal. U-05 Engineer builds a Wall. Acquired Ion Engine. U-05 Engineer builds a Wall. Map ----- +----------------------------------------------------+ | | | | | | | | | | | | | | | | | | | ?????????????????????????????????????????????????? | | ????????????????????????????????????#????????????? | | ??????????????????????????????????#??????????#???? | | ??????????????????#?#?????????????#???#??????????? | | ???????????????? + ????????????????#??#???????? | | ??????????????# # ???????????????????????????? | | ??????????????# ##+########????????????????? | | ??????????????# # ##?????#???#####?? | | ??????????????+ # #????????#?#"""#?? | | ??????????????# ]= # #??????#####"Y"#?? | | #########???### ]]] # #??#???## " "### | | #???% ] #???#### ! | | """""" #??] #?#???# # | | "????" #?? ####### | | "????" #? Y | | """""" #????# % | | ##### w% @ | | + %* % %! + | | ##### *! # ######## | | #########???## # #### ####??????#### # | | ?????????????# ?## #u##??????#####?# | | ?????????????# ??? ??????# # # | | ?????????????# ???# """ # ????# ! + # | | ?????????????# ?????# """ # ?????# # # | | ?????????????????? ?# """ # ????# + # | | ?????????????????? ???""" # """ ????# = # # | | ?????????????????? ????""?# """ ???# # # | | ?????????????????? ??? ? ?# """ ??# ?# # | | ?????????????????? ?????#?# ?? # ?# # | | ?????????????????? ???????###?#+## #### # | | ?????????????????? ?????????? # | | ?????????????????# #????????? #### | | ?????????????????# #????????? #??? | | #########????????+ +??????????#+ ##### ##??? | | #????????# #?????????? ???###/##### | | """ #????????# #??????????""" # !????# | | """"?" #????????# #????????????? ##?????# | | "????" #????????# #?????????????????????#* | | "????" ########## #?????????????????????# | | "????" + #?????????????????????# | | "?" # ######## #?????????????????????###### ## | +----------------------------------------------------+ Best States ------------- Heat Dissipation 28 Coolant Potential 50 Energy Generation 10 Energy Capacity 250 Matter Stores 300 Matter Capacity 300 Sight Range 16 Terrain Scan Range 14 Terrain Scan Density 10 Power Shielding 66 Evasion (%) 63 Recoil Reduction 2 Item Schematics ----------------- None Robot Schematics ------------------ None Fabricated ------------ Nothing Alien Tech Used ----------------- None Achievements -------------- None Challenges ------------ None Game ------ Seed UltimateRecyclingMace Manual? 0 Play Time 00:19:31 Cumulative 8.6 hours Start 2020.09.02 @ 00:45:58 End 2020.09.02 @ 01:02:33 Sessions 1 Manual Loads 0 Difficulty Rogue Special Mode None Game No. 20 Rogue 20 Adventurer 0 Explorer 0 Win Type - Total 0 Types 0/0/0/0/0/0/0 Lore% 13 Gallery% 19 Achievement% 12 Wizard Run 0 Options --------- ASCII 0 Keyboard 0 Movement Mouse Keybinds 0 Fullscreen 1 Font 18/SmallcapsGlow Map View 76x50 Tactical HUD 0 Map Filters NONE Filters NONE Steam 1 RUN: 27be9d45-578d-477c-a54e-2ea0ab9c0ee5